[Event "*** Titled Tuesday Blitz"]
[Site "Chess.com"]
[Date "2020.11.24"]
[Round "8"]
[White "Legendinunknown"]
[Black "UCantHandleDenker"]
[Result "1-0"]
[WhiteElo "2674"]
[BlackElo "2522"]
[TimeControl "180+1"]
[EndTime "11:44:59 PST"]
[Termination "Legendinunknown won by resignation"]

1. d4 {[%clk 0:03:00.9]} 1... Nf6 {[%clk 0:02:33.4]} 2. c4 {[%clk 0:03:00.1]}
2... e6 {[%clk 0:02:30.9]} 3. Nc3 {[%clk 0:02:58.7]} 3... d5 {[%clk 0:02:30.8]}
4. Nf3 {[%clk 0:02:57.1]} 4... Be7 {[%clk 0:02:30.8]} 5. Bf4 {[%clk 0:02:51.5]}
5... O-O {[%clk 0:02:29.7]} 6. e3 {[%clk 0:02:50.5]} 6... c5 {[%clk 0:02:29.8]}
7. dxc5 {[%clk 0:02:49.5]} 7... Bxc5 {[%clk 0:02:23.9]} 8. a3 {[%clk 0:02:48.6]}
8... Nc6 {[%clk 0:02:17.8]} 9. Rc1 {[%clk 0:02:47]} 9... dxc4 {[%clk 0:01:39]}
10. Bxc4 {[%clk 0:02:41.3]} 10... Bd7 {[%clk 0:01:34.3]} 11. O-O {[%clk
0:02:39.5]} 11... Rc8 {[%clk 0:01:31.9]} 12. b4 {[%clk 0:02:32.1]} 12... Be7
{[%clk 0:01:31.2]} 13. Nb5 {[%clk 0:02:31.3]} 13... Nh5 {[%clk 0:01:12.2]} 14.
Bd6 {[%clk 0:02:21]} 14... a6 {[%clk 0:01:11.7]} 15. Bxe7 {[%clk 0:02:20.2]}
15... Qxe7 {[%clk 0:01:12.2]} 16. Nd6 {[%clk 0:02:19.7]} 16... Rb8 {[%clk
0:01:08.6]} 17. Be2 {[%clk 0:02:13.8]} 17... Nf6 {[%clk 0:01:05.3]} 18. Nc4
{[%clk 0:02:09.7]} 18... Rfd8 {[%clk 0:01:04.1]} 19. Nb6 {[%clk 0:02:04.4]}
19... Be8 {[%clk 0:01:02.1]} 20. Qb3 {[%clk 0:02:02.1]} 20... Nd5 {[%clk
0:01:01.8]} 21. Nxd5 {[%clk 0:02:00.5]} 21... Rxd5 {[%clk 0:01:02.7]} 22. Rfd1
{[%clk 0:01:52.7]} 22... Rbd8 {[%clk 0:01:01.8]} 23. Rxd5 {[%clk 0:01:47.9]}
23... Rxd5 {[%clk 0:01:02.7]} 24. h3 {[%clk 0:01:20.7]} 24... h6 {[%clk
0:01:02.3]} 25. Qc2 {[%clk 0:01:17.2]} 25... Qd6 {[%clk 0:00:59.9]} 26. e4
{[%clk 0:01:13.6]} 26... Nd4 {[%clk 0:00:56.9]} 27. Nxd4 {[%clk 0:01:13.1]}
27... Rxd4 {[%clk 0:00:57.1]} 28. Qc8 {[%clk 0:01:11.8]} 28... Qd8 {[%clk
0:00:54.9]} 29. Qxb7 {[%clk 0:01:08.4]} 29... Kh7 {[%clk 0:00:38.3]} 30. Rc8
{[%clk 0:01:03.6]} 30... Qd7 {[%clk 0:00:24.6]} 31. Qxd7 {[%clk 0:01:02.7]}
31... Bxd7 {[%clk 0:00:24.8]} 32. Rd8 {[%clk 0:01:02.8]} 32... e5 {[%clk
0:00:17.3]} 33. Bxa6 {[%clk 0:01:00.3]} 1-0

[Event "*** Titled Tuesday Blitz"]
[Site "Chess.com"]
[Date "2020.11.24"]
[Round "8"]
[White "ajdemipopushi"]
[Black "sbouchet"]
[Result "1-0"]
[WhiteElo "2443"]
[BlackElo "2318"]
[TimeControl "180+1"]
[EndTime "11:45:01 PST"]
[Termination "ajdemipopushi won by resignation"]

1. Nf3 {[%clk 0:03:00.9]} 1... c5 {[%clk 0:02:58.6]} 2. g3 {[%clk 0:02:58.3]}
2... d5 {[%clk 0:02:56.9]} 3. Bg2 {[%clk 0:02:58.2]} 3... Nc6 {[%clk 0:02:57.5]}
4. d4 {[%clk 0:02:58.9]} 4... Nf6 {[%clk 0:02:55.1]} 5. O-O {[%clk 0:02:58.3]}
5... e6 {[%clk 0:02:53.1]} 6. c4 {[%clk 0:02:58.2]} 6... dxc4 {[%clk 0:02:50.3]}
7. Ne5 {[%clk 0:02:57.9]} 7... Nxe5 {[%clk 0:02:33.9]} 8. dxe5 {[%clk
0:02:57.5]} 8... Qxd1 {[%clk 0:02:31.7]} 9. Rxd1 {[%clk 0:02:57.6]} 9... Nd7
{[%clk 0:02:28.9]} 10. f4 {[%clk 0:02:57.6]} 10... f6 {[%clk 0:02:19.5]} 11.
exf6 {[%clk 0:02:55.5]} 11... gxf6 {[%clk 0:02:15.4]} 12. Na3 {[%clk 0:02:54.8]}
12... Nb6 {[%clk 0:01:53.3]} 13. Nb5 {[%clk 0:02:47.8]} 13... Kf7 {[%clk
0:01:48.4]} 14. Be3 {[%clk 0:02:37.8]} 14... Nd5 {[%clk 0:01:22.9]} 15. Bf2
{[%clk 0:02:29.3]} 15... a6 {[%clk 0:01:18.9]} 16. Na3 {[%clk 0:02:06.7]} 16...
b5 {[%clk 0:01:13]} 17. e4 {[%clk 0:01:59.2]} 17... Nb4 {[%clk 0:01:08]} 18. e5
{[%clk 0:01:50.6]} 18... Nd5 {[%clk 0:00:40.8]} 19. exf6 {[%clk 0:01:41.4]}
19... Bb7 {[%clk 0:00:37.6]} 20. Nc2 {[%clk 0:01:37.2]} 20... Kxf6 {[%clk
0:00:32]} 21. a4 {[%clk 0:01:32]} 21... Be7 {[%clk 0:00:24.9]} 22. Re1 {[%clk
0:01:22.3]} 22... Rhd8 {[%clk 0:00:20.7]} 23. Re2 {[%clk 0:01:11.4]} 23... Kf7
{[%clk 0:00:20]} 24. Rae1 {[%clk 0:01:10.5]} 24... Bc8 {[%clk 0:00:18.5]} 25.
Ne3 {[%clk 0:01:06]} 25... Nxe3 {[%clk 0:00:16]} 26. Bxa8 {[%clk 0:01:05.3]}
26... Nd5 {[%clk 0:00:14.1]} 27. Bc6 {[%clk 0:01:01.1]} 27... b4 {[%clk
0:00:11.3]} 28. f5 {[%clk 0:01:00.3]} 28... Bf6 {[%clk 0:00:05.4]} 29. fxe6+
{[%clk 0:00:58]} 29... Ke7 {[%clk 0:00:05.8]} 30. Bxc5+ {[%clk 0:00:57.1]} 1-0

[Event "*** Titled Tuesday Blitz"]
[Site "Chess.com"]
[Date "2020.11.24"]
[Round "8"]
[White "louis198"]
[Black "AsaHoffmann"]
[Result "1-0"]
[WhiteElo "2548"]
[BlackElo "2394"]
[TimeControl "180+1"]
[EndTime "11:45:20 PST"]
[Termination "louis198 won by resignation"]

1. d4 {[%clk 0:02:57.8]} 1... Nf6 {[%clk 0:02:43.8]} 2. c4 {[%clk 0:02:58.7]}
2... c5 {[%clk 0:02:43.3]} 3. e3 {[%clk 0:02:57.8]} 3... g6 {[%clk 0:02:41.1]}
4. Nc3 {[%clk 0:02:57.4]} 4... Bg7 {[%clk 0:02:34.8]} 5. Nf3 {[%clk 0:02:56.6]}
5... O-O {[%clk 0:02:34.3]} 6. Be2 {[%clk 0:02:54.6]} 6... b6 {[%clk 0:02:33.3]}
7. O-O {[%clk 0:02:53.6]} 7... Bb7 {[%clk 0:02:33]} 8. h3 {[%clk 0:02:45.6]}
8... e6 {[%clk 0:02:32.7]} 9. a3 {[%clk 0:02:38.7]} 9... d5 {[%clk 0:02:30.6]}
10. dxc5 {[%clk 0:02:34.2]} 10... bxc5 {[%clk 0:02:30.3]} 11. cxd5 {[%clk
0:02:30.2]} 11... exd5 {[%clk 0:02:29.6]} 12. Na4 {[%clk 0:02:24.3]} 12... Nbd7
{[%clk 0:02:21]} 13. Qb3 {[%clk 0:02:18.9]} 13... Rb8 {[%clk 0:02:18.5]} 14. Qc2
{[%clk 0:02:17.2]} 14... Qe7 {[%clk 0:02:15]} 15. Rd1 {[%clk 0:02:15.2]} 15...
Rfd8 {[%clk 0:02:12]} 16. Bd2 {[%clk 0:02:14.3]} 16... Ne4 {[%clk 0:02:05.7]}
17. Ba5 {[%clk 0:02:14]} 17... Rdc8 {[%clk 0:02:03]} 18. Rab1 {[%clk 0:02:13.7]}
18... Bc6 {[%clk 0:01:50.5]} 19. Ba6 {[%clk 0:02:10.8]} 19... Re8 {[%clk
0:01:41.8]} 20. Nc3 {[%clk 0:02:05.6]} 20... Nb6 {[%clk 0:01:31.7]} 21. Nxe4
{[%clk 0:02:01.5]} 21... dxe4 {[%clk 0:01:29.8]} 22. Nd2 {[%clk 0:02:00.6]}
22... Be5 {[%clk 0:01:19.8]} 23. Bc3 {[%clk 0:01:44]} 23... Nd5 {[%clk
0:01:15.3]} 24. Bxe5 {[%clk 0:01:40.5]} 24... Qxe5 {[%clk 0:01:14.7]} 25. Qxc5
{[%clk 0:01:36.2]} 25... Re6 {[%clk 0:01:12.8]} 26. Bf1 {[%clk 0:01:28.7]} 26...
Rf6 {[%clk 0:01:06.6]} 27. Nc4 {[%clk 0:01:02.5]} 27... Qf5 {[%clk 0:01:05.5]}
28. Rd2 {[%clk 0:01:01.7]} 28... a6 {[%clk 0:00:56.1]} 29. Nd6 {[%clk
0:00:59.7]} 29... Qd7 {[%clk 0:00:50.9]} 30. Nxe4 {[%clk 0:00:58.1]} 30... Re6
{[%clk 0:00:43.9]} 31. Nc3 {[%clk 0:00:57.8]} 31... Rd8 {[%clk 0:00:39]} 32.
Rbd1 {[%clk 0:00:56.5]} 32... Re5 {[%clk 0:00:30.5]} 33. e4 {[%clk 0:00:56.2]}
33... Rg5 {[%clk 0:00:25.5]} 34. exd5 {[%clk 0:00:46.9]} 34... Ba4 {[%clk
0:00:20.5]} 35. Nxa4 {[%clk 0:00:45]} 35... Qxa4 {[%clk 0:00:19.4]} 36. Qc6
{[%clk 0:00:43.4]} 1-0

[Event "*** Titled Tuesday Blitz"]
[Site "Chess.com"]
[Date "2020.11.24"]
[Round "8"]
[White "Slovak_fighter2000"]
[Black "YoungMegaMind"]
[Result "1-0"]
[WhiteElo "2470"]
[BlackElo "2300"]
[TimeControl "180+1"]
[EndTime "11:45:20 PST"]
[Termination "Slovak_fighter2000 won by resignation"]

1. d4 {[%clk 0:03:00.9]} 1... Nf6 {[%clk 0:02:59.2]} 2. Nf3 {[%clk 0:03:00]}
2... e6 {[%clk 0:02:56.9]} 3. Bf4 {[%clk 0:02:59.2]} 3... b6 {[%clk 0:02:55.7]}
4. e3 {[%clk 0:02:58.9]} 4... Bb7 {[%clk 0:02:55.9]} 5. Nbd2 {[%clk 0:02:55.3]}
5... d6 {[%clk 0:02:54.5]} 6. a4 {[%clk 0:02:50.2]} 6... a6 {[%clk 0:02:53.7]}
7. Be2 {[%clk 0:02:44.7]} 7... Nbd7 {[%clk 0:02:52.3]} 8. O-O {[%clk 0:02:43.6]}
8... g6 {[%clk 0:02:50]} 9. h3 {[%clk 0:02:42]} 9... Bg7 {[%clk 0:02:49.6]} 10.
Bh2 {[%clk 0:02:38.2]} 10... O-O {[%clk 0:02:49.5]} 11. c4 {[%clk 0:02:32.6]}
11... Rb8 {[%clk 0:02:38.1]} 12. a5 {[%clk 0:02:29.4]} 12... bxa5 {[%clk
0:02:14.4]} 13. Rxa5 {[%clk 0:02:20.3]} 13... Bxf3 {[%clk 0:02:05.4]} 14. Nxf3
{[%clk 0:02:14.4]} 14... Rxb2 {[%clk 0:01:59.2]} 15. Rxa6 {[%clk 0:02:08.1]}
15... Ne4 {[%clk 0:01:58.8]} 16. Bd3 {[%clk 0:01:59.6]} 16... f5 {[%clk
0:01:30.1]} 17. Bxe4 {[%clk 0:01:53]} 17... fxe4 {[%clk 0:01:29.9]} 18. Nd2
{[%clk 0:01:50.5]} 18... Qb8 {[%clk 0:00:41]} 19. Nxe4 {[%clk 0:01:44.3]} 19...
Qb7 {[%clk 0:00:40.9]} 20. Qa1 {[%clk 0:01:32.3]} 20... Rb4 {[%clk 0:00:34.7]}
21. Nxd6 {[%clk 0:01:22]} 21... cxd6 {[%clk 0:00:29.5]} 22. Bxd6 {[%clk
0:01:22.9]} 22... Rxc4 {[%clk 0:00:29.5]} 23. Bxf8 {[%clk 0:01:21.1]} 23... Nxf8
{[%clk 0:00:29.5]} 24. Ra7 {[%clk 0:01:13.9]} 24... Qd5 {[%clk 0:00:27]} 25. Qa3
{[%clk 0:01:06.5]} 25... Qd8 {[%clk 0:00:16.3]} 26. Qb3 {[%clk 0:00:55.7]} 26...
Rc8 {[%clk 0:00:15.7]} 27. Qb7 {[%clk 0:00:50.9]} 27... Bf6 {[%clk 0:00:07.9]}
28. Qf7+ {[%clk 0:00:44]} 28... Kh8 {[%clk 0:00:08]} 29. Rb1 {[%clk 0:00:36.8]}
29... Qe8 {[%clk 0:00:08.1]} 30. Qxf6+ {[%clk 0:00:35.9]} 1-0

[Event "*** Titled Tuesday Blitz"]
[Site "Chess.com"]
[Date "2020.11.24"]
[Round "8"]
[White "ljuks68"]
[Black "PawnEatingZombie"]
[Result "1-0"]
[WhiteElo "2401"]
[BlackElo "2265"]
[TimeControl "180+1"]
[EndTime "11:45:20 PST"]
[Termination "ljuks68 won by resignation"]

1. e4 {[%clk 0:02:47.8]} 1... c6 {[%clk 0:02:59.8]} 2. d4 {[%clk 0:02:46.9]}
2... d5 {[%clk 0:03:00.7]} 3. e5 {[%clk 0:02:47.4]} 3... Bf5 {[%clk 0:03:00.3]}
4. Nd2 {[%clk 0:02:47.6]} 4... e6 {[%clk 0:02:58.2]} 5. Nb3 {[%clk 0:02:48]}
5... Ne7 {[%clk 0:02:55.1]} 6. Nf3 {[%clk 0:02:48.3]} 6... Nc8 {[%clk
0:02:54.2]} 7. Be2 {[%clk 0:02:46.5]} 7... a5 {[%clk 0:02:53.4]} 8. a4 {[%clk
0:02:44.8]} 8... Be7 {[%clk 0:02:50]} 9. O-O {[%clk 0:02:43.7]} 9... O-O {[%clk
0:02:49.4]} 10. Bd2 {[%clk 0:02:43.2]} 10... Nd7 {[%clk 0:02:40.8]} 11. Bd3
{[%clk 0:02:34]} 11... Bxd3 {[%clk 0:02:35.8]} 12. cxd3 {[%clk 0:02:33.7]} 12...
Qb6 {[%clk 0:02:18.7]} 13. Bc3 {[%clk 0:02:23.8]} 13... Bb4 {[%clk 0:02:04.5]}
14. Re1 {[%clk 0:02:14.2]} 14... Ne7 {[%clk 0:02:01.8]} 15. Nbd2 {[%clk
0:02:07.2]} 15... c5 {[%clk 0:01:53.1]} 16. dxc5 {[%clk 0:01:58.8]} 16... Nxc5
{[%clk 0:01:49.9]} 17. Nf1 {[%clk 0:01:48.5]} 17... Nf5 {[%clk 0:01:35.1]} 18.
Ne3 {[%clk 0:01:45.1]} 18... d4 {[%clk 0:01:00.4]} 19. Nc4 {[%clk 0:01:03.9]}
19... Qc7 {[%clk 0:00:44.9]} 20. Bxb4 {[%clk 0:01:03.3]} 20... axb4 {[%clk
0:00:44.2]} 21. a5 {[%clk 0:01:02.4]} 21... h5 {[%clk 0:00:34.7]} 22. Qd2 {[%clk
0:01:01.3]} 22... Rfd8 {[%clk 0:00:30]} 23. Rad1 {[%clk 0:00:57.4]} 23... Qe7
{[%clk 0:00:13.5]} 24. Qxb4 {[%clk 0:00:51.7]} 24... Na6 {[%clk 0:00:03.5]} 25.
Qd2 {[%clk 0:00:45]} 25... Qb4 {[%clk 0:00:02.3]} 26. Qf4 {[%clk 0:00:42.9]}
26... Nc5 {[%clk 0:00:02.1]} 27. Qg5 {[%clk 0:00:34.5]} 27... Qxb2 {[%clk
0:00:01.3]} 28. Nxb2 {[%clk 0:00:32.8]} 1-0

[Event "*** Titled Tuesday Blitz"]
[Site "Chess.com"]
[Date "2020.11.24"]
[Round "8"]
[White "Julianos82"]
[Black "PlotnikovPavel"]
[Result "1-0"]
[WhiteElo "2349"]
[BlackElo "2470"]
[TimeControl "180+1"]
[EndTime "11:45:23 PST"]
[Termination "Julianos82 won by checkmate"]

1. d4 {[%clk 0:03:00.9]} 1... Nf6 {[%clk 0:02:57.9]} 2. Nf3 {[%clk 0:03:00.8]}
2... g6 {[%clk 0:02:57.3]} 3. c4 {[%clk 0:03:00.1]} 3... Bg7 {[%clk 0:02:57.1]}
4. Nc3 {[%clk 0:03:00.2]} 4... O-O {[%clk 0:02:58]} 5. e4 {[%clk 0:02:59.2]}
5... d6 {[%clk 0:02:58.9]} 6. Be2 {[%clk 0:02:59]} 6... e5 {[%clk 0:02:57.4]} 7.
Be3 {[%clk 0:02:59]} 7... Nc6 {[%clk 0:02:55.8]} 8. d5 {[%clk 0:02:59]} 8... Ne7
{[%clk 0:02:54.5]} 9. Nd2 {[%clk 0:02:58.8]} 9... Ne8 {[%clk 0:02:53.6]} 10. c5
{[%clk 0:02:58.7]} 10... f5 {[%clk 0:02:54.2]} 11. f3 {[%clk 0:02:58.9]} 11...
f4 {[%clk 0:02:51.9]} 12. Bf2 {[%clk 0:02:58.3]} 12... g5 {[%clk 0:02:52.6]} 13.
h3 {[%clk 0:02:57]} 13... h5 {[%clk 0:02:50.7]} 14. Nc4 {[%clk 0:02:56]} 14...
Ng6 {[%clk 0:02:47.5]} 15. b4 {[%clk 0:02:49.5]} 15... Rf7 {[%clk 0:02:47]} 16.
Qb3 {[%clk 0:02:46.9]} 16... Bf8 {[%clk 0:02:46.9]} 17. a4 {[%clk 0:02:45.7]}
17... Nf6 {[%clk 0:02:46.7]} 18. a5 {[%clk 0:02:42.6]} 18... g4 {[%clk
0:02:46.3]} 19. hxg4 {[%clk 0:02:43.5]} 19... hxg4 {[%clk 0:02:47.2]} 20. O-O-O
{[%clk 0:02:29.4]} 20... g3 {[%clk 0:02:44]} 21. Bg1 {[%clk 0:02:28.9]} 21...
Nd7 {[%clk 0:02:35.8]} 22. c6 {[%clk 0:02:19.9]} 22... Nb8 {[%clk 0:02:18.2]}
23. b5 {[%clk 0:02:08.7]} 23... bxc6 {[%clk 0:02:10]} 24. dxc6 {[%clk
0:02:05.2]} 24... Be6 {[%clk 0:02:09]} 25. Nd5 {[%clk 0:02:05.3]} 25... Nh4
{[%clk 0:01:57.2]} 26. Rxh4 {[%clk 0:01:55.8]} 26... Qxh4 {[%clk 0:01:54.9]} 27.
a6 {[%clk 0:01:33.8]} 27... Bxd5 {[%clk 0:01:46.2]} 28. Rxd5 {[%clk 0:01:27.3]}
28... Qh1 {[%clk 0:01:38.3]} 29. Rd1 {[%clk 0:01:24.5]} 29... Qxg2 {[%clk
0:01:37.3]} 30. Nxe5 {[%clk 0:01:14.9]} 30... dxe5 {[%clk 0:01:24.3]} 31. Bc4
{[%clk 0:01:14.6]} 31... Bd6 {[%clk 0:00:55.5]} 32. Bxf7+ {[%clk 0:01:11.8]}
32... Kg7 {[%clk 0:00:56.1]} 33. Be8 {[%clk 0:01:05.2]} 33... Nxa6 {[%clk
0:00:39.1]} 34. Qf7+ {[%clk 0:00:50.9]} 34... Kh8 {[%clk 0:00:38.7]} 35. Qf6+
{[%clk 0:00:44.6]} 35... Kg8 {[%clk 0:00:33.2]} 36. Bf7+ {[%clk 0:00:44.6]}
36... Kf8 {[%clk 0:00:18.2]} 37. Be6+ {[%clk 0:00:43.2]} 37... Ke8 {[%clk
0:00:16.9]} 38. Qf7+ {[%clk 0:00:42.4]} 38... Kd8 {[%clk 0:00:17.8]} 39. Qd7#
{[%clk 0:00:42.5]} 1-0

[Event "*** Titled Tuesday Blitz"]
[Site "Chess.com"]
[Date "2020.11.24"]
[Round "8"]
[White "woodhy"]
[Black "OMGCovid-19"]
[Result "1-0"]
[WhiteElo "2449"]
[BlackElo "1875"]
[TimeControl "180+1"]
[EndTime "11:45:25 PST"]
[Termination "woodhy won by resignation"]

1. e4 {[%clk 0:03:00.9]} 1... e6 {[%clk 0:03:00.5]} 2. Nf3 {[%clk 0:03:01.3]}
2... d5 {[%clk 0:03:00.8]} 3. Nc3 {[%clk 0:03:02.2]} 3... Nf6 {[%clk 0:02:58.9]}
4. exd5 {[%clk 0:02:59.6]} 4... exd5 {[%clk 0:02:58.2]} 5. g3 {[%clk 0:02:56.1]}
5... Bg4 {[%clk 0:02:55.9]} 6. Bg2 {[%clk 0:02:56.3]} 6... Be7 {[%clk
0:02:55.1]} 7. O-O {[%clk 0:02:56.5]} 7... O-O {[%clk 0:02:54.8]} 8. Re1 {[%clk
0:02:57.1]} 8... c5 {[%clk 0:02:49.7]} 9. d4 {[%clk 0:02:56.8]} 9... Nc6 {[%clk
0:02:46.5]} 10. Be3 {[%clk 0:02:57.3]} 10... cxd4 {[%clk 0:02:40.3]} 11. Bxd4
{[%clk 0:02:58.2]} 11... Nxd4 {[%clk 0:02:39.1]} 12. Qxd4 {[%clk 0:02:59.1]}
12... Rc8 {[%clk 0:02:17.4]} 13. Rad1 {[%clk 0:02:42.8]} 13... Bc5 {[%clk
0:02:15.5]} 14. Qf4 {[%clk 0:02:39.3]} 14... Bd6 {[%clk 0:01:57.1]} 15. Qg5
{[%clk 0:02:33.3]} 15... h6 {[%clk 0:01:54.3]} 16. Qh4 {[%clk 0:02:31]} 16...
Be6 {[%clk 0:01:40.7]} 17. Nd4 {[%clk 0:02:27.7]} 17... Bg4 {[%clk 0:01:35.9]}
18. Nxd5 {[%clk 0:02:16.1]} 18... Bxd1 {[%clk 0:01:33.5]} 19. Nxf6+ {[%clk
0:02:15]} 19... Qxf6 {[%clk 0:01:32.8]} 20. Qxf6 {[%clk 0:02:15]} 20... gxf6
{[%clk 0:01:32.2]} 21. Rxd1 {[%clk 0:02:15.2]} 21... b6 {[%clk 0:01:24.9]} 22.
Nf5 {[%clk 0:02:10]} 22... Bc5 {[%clk 0:01:20.7]} 23. Nxh6+ {[%clk 0:01:59.9]}
23... Kh7 {[%clk 0:01:18.7]} 24. Ng4 {[%clk 0:01:58.6]} 24... Rcd8 {[%clk
0:01:16.6]} 25. Nxf6+ {[%clk 0:01:53.3]} 25... Kg7 {[%clk 0:01:08.2]} 26. Nd5
{[%clk 0:01:50.9]} 26... Rfe8 {[%clk 0:01:05.1]} 27. Kf1 {[%clk 0:01:50.8]}
27... Re5 {[%clk 0:00:56.3]} 28. h4 {[%clk 0:01:48.8]} 28... f5 {[%clk
0:00:50.8]} 29. Bf3 {[%clk 0:01:41.5]} 29... a5 {[%clk 0:00:21.6]} 30. a4 {[%clk
0:01:33.8]} 30... b5 {[%clk 0:00:16.8]} 31. axb5 {[%clk 0:01:32.5]} 31... Rb8
{[%clk 0:00:17.1]} 32. c4 {[%clk 0:01:32.1]} 32... a4 {[%clk 0:00:15.4]} 33. Ra1
{[%clk 0:01:30.4]} 33... a3 {[%clk 0:00:12.4]} 34. bxa3 {[%clk 0:01:28.5]} 34...
Rc8 {[%clk 0:00:12.9]} 35. Nf4 {[%clk 0:01:24.1]} 35... Bd4 {[%clk 0:00:12.3]}
36. Rc1 {[%clk 0:01:20.3]} 36... Bb2 {[%clk 0:00:10.9]} 37. Rc2 {[%clk
0:01:20.5]} 37... Bxa3 {[%clk 0:00:10.6]} 38. Bd5 {[%clk 0:01:21.4]} 38... Bd6
{[%clk 0:00:07.5]} 39. Ne6+ {[%clk 0:01:18.5]} 39... Kf6 {[%clk 0:00:06]} 40.
Nd4 {[%clk 0:01:19.4]} 40... Bc5 {[%clk 0:00:04.6]} 41. Nf3 {[%clk 0:01:18.9]}
41... Re7 {[%clk 0:00:03.4]} 42. Ng5 {[%clk 0:01:16.9]} 42... Ra7 {[%clk
0:00:03.4]} 43. Ne6 {[%clk 0:01:15.2]} 43... Ra1+ {[%clk 0:00:03.3]} 44. Kg2
{[%clk 0:01:15.2]} 44... Rb8 {[%clk 0:00:01.4]} 45. Nxc5 {[%clk 0:01:14.7]}
45... Rc8 {[%clk 0:00:01.9]} 1-0

[Event "*** Titled Tuesday Blitz"]
[Site "Chess.com"]
[Date "2020.11.24"]
[Round "8"]
[White "1977Ivan"]
[Black "ChessWarrior7197"]
[Result "0-1"]
[WhiteElo "2687"]
[BlackElo "2989"]
[TimeControl "180+1"]
[EndTime "11:45:27 PST"]
[Termination "ChessWarrior7197 won by resignation"]

1. d4 {[%clk 0:03:00.9]} 1... d5 {[%clk 0:02:59.8]} 2. c4 {[%clk 0:02:59.1]}
2... c6 {[%clk 0:03:00.2]} 3. Nf3 {[%clk 0:02:58.6]} 3... Nf6 {[%clk 0:02:59.1]}
4. Nc3 {[%clk 0:02:57.7]} 4... a6 {[%clk 0:02:58.2]} 5. cxd5 {[%clk 0:02:48.7]}
5... cxd5 {[%clk 0:02:58.2]} 6. Bg5 {[%clk 0:02:49.2]} 6... Nc6 {[%clk
0:02:49.9]} 7. Bxf6 {[%clk 0:02:48.6]} 7... gxf6 {[%clk 0:02:50.8]} 8. e3 {[%clk
0:02:47.9]} 8... Bg4 {[%clk 0:02:48.1]} 9. Rc1 {[%clk 0:02:20.9]} 9... e6 {[%clk
0:02:47.5]} 10. Bd3 {[%clk 0:02:07.5]} 10... Bd6 {[%clk 0:02:47]} 11. h3 {[%clk
0:02:06.2]} 11... Bh5 {[%clk 0:02:46.2]} 12. g4 {[%clk 0:01:53]} 12... Bg6
{[%clk 0:02:46.1]} 13. h4 {[%clk 0:01:53.5]} 13... Rg8 {[%clk 0:02:43.3]} 14. h5
{[%clk 0:01:52.2]} 14... Bxd3 {[%clk 0:02:43.3]} 15. Qxd3 {[%clk 0:01:53.1]}
15... Rxg4 {[%clk 0:02:42.9]} 16. Qxh7 {[%clk 0:01:51.7]} 16... Qb6 {[%clk
0:02:42.9]} 17. Rc2 {[%clk 0:01:27.6]} 17... Ke7 {[%clk 0:02:42.7]} 18. Nh4
{[%clk 0:01:23.4]} 18... Rag8 {[%clk 0:02:40.6]} 19. Ng6+ {[%clk 0:01:05.5]}
19... R4xg6 {[%clk 0:02:41.1]} 20. hxg6 {[%clk 0:01:06.4]} 20... Rxg6 {[%clk
0:02:41.6]} 21. Qh8 {[%clk 0:01:04.8]} 21... f5 {[%clk 0:02:34.3]} 22. Rh6
{[%clk 0:00:59.3]} 22... Rxh6 {[%clk 0:02:25.7]} 23. Qxh6 {[%clk 0:01:00.2]}
23... Qa5 {[%clk 0:02:07.3]} 24. Qg5+ {[%clk 0:00:59.6]} 24... Kd7 {[%clk
0:02:07.3]} 25. Qf6 {[%clk 0:00:56.5]} 25... Ke8 {[%clk 0:02:06.6]} 26. Kf1
{[%clk 0:00:55.3]} 26... f4 {[%clk 0:01:41.6]} 27. exf4 {[%clk 0:00:50.5]} 27...
Qb4 {[%clk 0:01:41.5]} 28. Qh8+ {[%clk 0:00:46.5]} 28... Kd7 {[%clk 0:01:41.1]}
29. Rd2 {[%clk 0:00:42.6]} 29... Bxf4 {[%clk 0:01:39.8]} 30. Re2 {[%clk
0:00:20.6]} 30... Nxd4 {[%clk 0:01:39.1]} 31. Re1 {[%clk 0:00:16.8]} 31... Nf3
{[%clk 0:01:38.2]} 32. Re2 {[%clk 0:00:16.2]} 32... Qc4 {[%clk 0:01:38.3]} 33.
Qf6 {[%clk 0:00:15.4]} 33... Ke8 {[%clk 0:01:25.7]} 34. Kg2 {[%clk 0:00:15]}
34... Ng5 {[%clk 0:01:17.7]} 35. b3 {[%clk 0:00:07.3]} 35... Qd3 {[%clk
0:01:17.5]} 36. Qxf4 {[%clk 0:00:07.1]} 36... Qh3+ {[%clk 0:01:18.1]} 37. Kg1
{[%clk 0:00:07.4]} 37... Nf3+ {[%clk 0:01:19]} 38. Qxf3 {[%clk 0:00:07.8]} 38...
Qxf3 {[%clk 0:01:19.9]} 39. Re3 {[%clk 0:00:08.6]} 39... Qg4+ {[%clk 0:01:19.4]}
40. Rg3 {[%clk 0:00:09.5]} 40... Qf5 {[%clk 0:01:18.4]} 41. Kg2 {[%clk
0:00:09.5]} 41... d4 {[%clk 0:01:18.5]} 42. Ne2 {[%clk 0:00:09.6]} 42... Qe4+
{[%clk 0:01:18.7]} 43. Kf1 {[%clk 0:00:08.8]} 43... d3 {[%clk 0:01:19.1]} 44.
Nc3 {[%clk 0:00:07.6]} 44... Qh1+ {[%clk 0:01:19.2]} 45. Rg1 {[%clk 0:00:07.1]}
45... Qc6 {[%clk 0:01:20.1]} 46. Nd1 {[%clk 0:00:06]} 46... Qf3 {[%clk
0:01:20.1]} 47. Ne3 {[%clk 0:00:03.6]} 47... d2 {[%clk 0:01:20.4]} 48. Rg8+
{[%clk 0:00:03.7]} 48... Ke7 {[%clk 0:01:20.7]} 0-1